Cogmind - Beta 16.1 @@@ ROGUE MODE // 2026.02.11 @ 23:32:41 Player: Rudrot Result: Destroyed by Autobeam Turret with Autobeam Performance ------------- Evolutions (0) 0 Regions Visited (3) 600 Robots Destroyed (50) 250 Value Destroyed (1014) 1014 Prototype IDs (0) 0 Alien Tech Used (0) 0 Bonus (0) 0 TOTAL SCORE: 1864 Bonus ------- None Cogmind --------- Core Integrity 0/250 Matter 172/300 Energy 250/250 System Corruption 0% Temperature Cool (12) Movement Rolling (95) Location -10/Subcaves Parts ------- > --- POWER (1) -------- Ion Engine > --- PROPULSION (2) --- Wheel Subdweller Monowheel > --- UTILITY (2) ------ Improved Terrain Scanner Seismic Detector > --- WEAPON (2) ------- Light Cannon Grenade Launcher > --- INVENTORY (5) ---- Ion Engine Large Matter Pod (150) Sensor Array Weapon Shielding Riot Gun Peak State ------------ > --- POWER ------------ Light Ion Engine > --- PROPULSION ------- Wheel Wheel > --- UTILITY ---------- Improved Terrain Scanner Improved Terrain Scanner > --- WEAPON ----------- Assault Rifle Light Assault Rifle > --- INVENTORY -------- Compact Wheel EM Pulse Gun [Rating: 11] Favorites ----------- Power Ion Engine Engine Ion Engine Propulsion Wheel Wheel Wheel Utility Improved Terrain Scanner Device Improved Terrain Scanner Weapon Grenade Launcher Energy Gun EM Pulse Gun Ballistic Gun Assault Rifle Ballistic Cannon Light Cannon Launcher Grenade Launcher Build | -11 -10 -10 -10 ------- Run | Yrd Mat Min Sub Slots Evolved . | . . . . Power . | . . . . Propulsion . | . . . . Utility . | . . . . Weapon . | . . . . Parts Attached 23 | 9 8 4 2 Power 3 | 1 1 1 . Engine 3 | 1 1 1 . Core . | . . . . Reactor . | . . . . Propulsion 8 | 2 3 1 2 Treads . | . . . . Leg . | . . . . Wheel 8 | 2 3 1 2 Hover . | . . . . Flight . | . . . . Utility 7 | 3 2 2 . Device 7 | 3 2 2 . Storage . | . . . . Processor . | . . . . Hackware . | . . . . Protection . | . . . . Artifact . | . . . . Weapon 5 | 3 2 . . Energy Gun 1 | 1 . . . Energy Cannon . | . . . . Ballistic Gun 2 | 2 . . . Ballistic Cannon 1 | . 1 . . Launcher 1 | . 1 . . Special Weapon . | . . . . Impact Weapon . | . . . . Slashing Weapon . | . . . . Piercing Weapon . | . . . . Special Melee Weapon . | . . . . Unidentified Prototypes . | . . . . Parts Lost 1 | . . . 1 Power . | . . . . Propulsion 1 | . . . 1 Utility . | . . . . Weapon . | . . . . Highest Loss Streak 1 | . . . 1 To Critical Strikes . | . . . . Average Backups 4 | 1 4 4 5 Power . | . . 1 1 Propulsion . | . . . . Utility 2 | . 2 3 3 Weapon . | . . . . Tool/Special . | . . . . Unused Backups 6 | 1 . 2 3 Power . | . . . . Propulsion 1 | 1 . . . Utility 4 | . . 2 2 Weapon 1 | . . . 1 Tool/Special . | . . . . Average Slot Usage (%) 98 | . 96 100 99 Engine 14 | . 14 14 14 Wheel 27 | . 25 28 27 Device 27 | . 27 28 28 Ballistic Gun 3 | . 13 . . Ballistic Cannon 10 | . . 14 14 Launcher 13 | . 13 14 14 Peak Build Rating 11 | 11 10 9 10 Average Rating 8 | 6 8 9 9 On Entrance 6 | . 9 9 9 Avg Prop Armor Cover (%) . | . . . . Naked Turns . | . . . . Heaviest Build 13 | 8 13 13 13 Greatest Support 30 | 20 20 20 30 Greatest Overweight (x) 1 | . . . 1 Average Overweight (x) . | . . . . Largest Inventory Capacity 5 | 5 5 5 5 Average Capacity 5 | 5 5 5 5 Most Carried 5 | 3 5 5 5 Average Carried 4 | 1 4 4 4 Final Capacity 5 | 5 5 5 5 Final Carried 5 | 3 4 5 5 Class Distribution -------------------- 100% | Mutant Dominant Class ---------------- Mutant | -10/Materials Mutant | -10/Mines Mutant | -10/Subcaves Resources | -11 -10 -10 -10 ----------- Run | Yrd Mat Min Sub Matter Collected 1399 | 314 422 253 410 Remotely . | . . . . Salvage Created 1056 | 125 373 243 315 Parts 87 | 12 29 24 22 Haulers Intercepted 2 | . 2 . . Recyclers Shooed 1 | . . 1 . Parts Field Recycled . | . . . . Retrieved Matter . | . . . . Parts Self-Destructed 7 | . . . 7 Prevented . | . . . . Parts Restored . | . . . . Kills | -11 -10 -10 -10 ------- Run | Yrd Mat Min Sub Combat Hostiles Destroyed 30 | . 9 9 12 Cannons 4 | . . 1 3 AOE 26 | . 9 8 9 Classes Destroyed 9 | 2 6 . 1 Worker 5 | . 3 2 . Builder 2 | . 2 . . Tunneler 5 | 2 1 2 . Hauler 2 | . 2 . . Recycler 3 | 1 1 1 . Watcher 3 | . 3 . . Swarmer 12 | . 6 6 . Grunt 8 | . 3 3 2 Subdweller 10 | . . . 10 Best Kill Streak 6 | 1 6 4 2 Combat Bots Only 3 | . 3 3 2 Max Kills in Single Turn 3 | 1 3 3 2 Gunslinging . | . . . . Exploded 3 | . 2 3 1 Melee . | . . . . Uniques/NPCs Destroyed . | . . . . Combat | -11 -10 -10 -10 -------- Run | Yrd Mat Min Sub Hostile Shots Fired 64 | . 24 14 26 Missed 29 | . 10 7 12 Hits 35 | . 14 7 14 Projectile 35 | . 14 7 14 Damage Taken 637 | . 222 68 347 Core 252 | . 106 10 136 Absorbed by Shields . | . . . . Regen/Repaired (Parts) 41 | . 41 . . Core Remaining (%) 100 | 100 . . . Volleys Fired 103 | 9 42 15 37 Largest 2 | 2 2 2 2 Hottest 60 | 40 50 60 60 Shots Fired 147 | 12 61 21 53 Gun 54 | 12 42 . . Cannon 37 | . . 15 22 Launcher 56 | . 19 6 31 Special . | . . . . Kinetic 89 | 10 42 15 22 Thermal . | . . . . Explosive 56 | . 19 6 31 Electromagnetic 2 | 2 . . . Robot Hit Streak 13 | 6 11 2 13 Robot Miss Streak 4 | 1 4 2 1 Penetration Max . | . . . . Secondary Targets . | . . . . Shots Hit Robots 77 | 10 28 11 28 Core Hits 75 | 4 29 16 26 Critical Kills . | . . . . Critical Parts Destroyed . | . . . . Critical Strikes 1 | . . 1 . Blast 1 | . . 1 . Melee Attacks . | . . . . Impact . | . . . . Slashing . | . . . . Piercing . | . . . . Sneak Attacks . | . . . . Combat Hostiles . | . . . . Follow-up Attacks . | . . . . Damage Inflicted 3693 | 122 1186 718 1667 Guns 330 | 122 208 . . Cannons 401 | . . 130 271 Explosions 2959 | . 978 585 1396 Melee . | . . . . Ramming 3 | . . 3 . Kinetic 703 | 94 208 130 271 Thermal . | . . . . Explosive 2959 | . 978 585 1396 Electromagnetic 28 | 28 . . . Impact . | . . . . Slashing . | . . . . Piercing . | . . . . Highest Corruption . | . . . . Average Corruption . | . . . . Corruption Purged . | . . . . Corruption Blocked . | . . . . Overload Shots . | . . . . Overflow Damage 41 | . 12 29 . Projectiles . | . . . . Explosions 41 | . 12 29 . Melee . | . . . . Knockbacks 2 | . . 1 1 Impact . | . . . . Kinetic 2 | . . 1 1 Secondary . | . . . . Self-Inflicted Damage 102 | . 69 10 23 Shots 5 | . 1 1 3 Rammed 2 | . . 2 . Targets Rammed 2 | . . 2 . Kicked . | . . . . Crushed . | . . . . Highest Temperature 20 | . 7 20 1 Average Temperature 8 | . 3 20 1 Received Heat Transfer 108 | . 54 . 54 Siege Activations . | . . . . Martial Activations . | . . . . Shielding Activations . | . . . . Robots Disrupted . | . . . . Combat Hostiles . | . . . . Robots Corrupted . | . . . . Combat Hostiles . | . . . . Parts Fried . | . . . . Impact Corruptions . | . . . . Robots Melted . | . . . . Combat Hostiles . | . . . . Parts Melted . | . . . . Heat Transferred . | . . . . Parts Sabotaged . | . . . . Parts Stolen . | . . . . Parts Stripped . | . . . . Power Chain Reactions . | . . . . Alert | -11 -10 -10 -10 ------- Run | Yrd Mat Min Sub Maximum Alert Level . | . . . . Low Security (%) 100 | 100 100 100 . Level 1 . | . . . . Level 2 . | . . . . Level 3 . | . . . . Level 4 . | . . . . Level 5 . | . . . . High Security . | . . . . Max Security . | . . . . Peak Influence 143 | 5 143 91 . Initial 24 | . . 24 . Average 37 | 1 67 21 . Influence Increases 848 | 15 509 268 56 Destroy 0b10 Robot/C 400 | . 180 180 40 Destroy 0b10 Robot/NC 100 | 15 60 25 . Destroy Leader 80 | . 50 20 10 Allied During Kill 6 | . . . 6 Disable Machine 75 | . 75 . . Destroy Structure 187 | . 144 43 . Influence Decreases 848 | 15 446 331 56 Entered New Map 39 | . . 39 . Time Decay 809 | 15 446 292 56 Squads Dispatched 1 | . 1 . . Investigation 1 | . 1 . . Extermination . | . . . . Reinforcement . | . . . . Assault . | . . . . Garrison . | . . . . Intercept . | . . . . Searches Triggered . | . . . . Construction Impeded . | . . . . Haulers Reinforced . | . . . . Active Scanning Responses . | . . . . Cargo Convoy Interrupts . | . . . . Stealth | -11 -10 -10 -10 --------- Run | Yrd Mat Min Sub Distress Signals 1 | . 1 . . Communications Jammed . | . . . . Distress Signals . | . . . . Times Spotted 37 | . 14 6 17 Peak Tracking Total 4 | . 4 3 2 Tactical Retreats . | . . . . Traps | -11 -10 -10 -10 ------- Run | Yrd Mat Min Sub Traps Triggered 5 | . 3 . 2 Indirectly . | . . . . Trap Hack Attempts . | . . . . Triggered . | . . . . Disarmed . | . . . . Reprogrammed . | . . . . Reused . | . . . . Traps Extracted . | . . . . Installed . | . . . . Triggered . | . . . . Machines | -11 -10 -10 -10 ---------- Run | Yrd Mat Min Sub Machines Disabled 5 | . 5 . . Max in Single Turn 2 | . 2 . . Machines Repaired . | . . . . Machines Dismantled . | . . . . Machines Sabotaged . | . . . . Overloaded Fab Kills . | . . . . Hacking | -11 -10 -10 -10 --------- Run | Yrd Mat Min Sub Machines Accessed 2 | . 1 1 . Terminals . | . . . . Fabricators . | . . . . Repair Stations 1 | . 1 . . Recycling Units . | . . . . Scanalyzers . | . . . . Garrison Access . | . . . . Total Hacks 4 | . 3 1 . Successful 3 | . 2 1 . Failed 1 | . 1 . . Catastrophic . | . . . . Database Lockouts . | . . . . Manual . | . . . . Terminals . | . . . . Fabricators . | . . . . Repair Stations 3 | . 3 . . Recycling Units . | . . . . Scanalyzers . | . . . . Garrison Access . | . . . . Terminal Hacks 1 | . . 1 . Open Door 1 | . . 1 . Fabricator Hacks . | . . . . Repair Station Hacks 2 | . 2 . . Scan Component 1 | . 1 . . Repair 1 | . 1 . . Recycling Unit Hacks . | . . . . Scanalyzer . | . . . . Garrison Access Hacks . | . . . . Unauthorized Hacks . | . . . . Terminals . | . . . . Fabricators . | . . . . Repair Stations . | . . . . Recycling Units . | . . . . Scanalyzers . | . . . . Garrison Access . | . . . . Data Cores Recovered . | . . . . Used . | . . . . Hacking Detections . | . . . . Full Trace Events . | . . . . Feedback Events . | . . . . Feedback Blocked . | . . . . Robot Schematics Acquired . | . . . . Robots Built . | . . . . Authchips . | . . . . Time . | . . . . Total Robot Build Rating . | . . . . Part Schematics Acquired . | . . . . Parts Built . | . . . . Authchips . | . . . . Time . | . . . . Total Part Build Rating . | . . . . Part Studies Acquired . | . . . . Parts Repaired 1 | . 1 . . Time 26 | . 26 . . Parts Recycled . | . . . . Recycled Matter . | . . . . Retrieved Matter . | . . . . Retrieved Components . | . . . . Parts Scanalyzed . | . . . . Part Schematics Acquired . | . . . . Parts Damaged . | . . . . Bothacking | -11 -10 -10 -10 ------------ Run | Yrd Mat Min Sub Used RIF Installer . | . . . . Robots Hacked . | . . . . Non-combat . | . . . . Combat . | . . . . Robot Hacks Applied . | . . . . Relay Couplers Released . | . . . . Fabnet Peak Effective % . | . . . . Robots Rewired . | . . . . Allies Hacked . | . . . . Hacks Repelled . | . . . . Allies | -11 -10 -10 -10 -------- Run | Yrd Mat Min Sub Total Allies 2 | . . 2 . Largest Group 2 | . . 2 2 Highest-Rated Group 38 | . . 38 38 Highest-Rated Ally 31 | . . 31 31 Total Orders . | . . . . Ally Attacks 13 | . . . 13 Total Damage 216 | . . . 216 Kills . | . . . . Allies Corrupted . | . . . . Allies Melted . | . . . . Intel | -11 -10 -10 -10 ------- Run | Yrd Mat Min Sub Active Infowar (turns) 4342 | 121 1197 1863 1161 Sensors 2 | . 2 . . Terrain 4335 | 121 1190 1863 1161 Seismic 4232 | 19 1189 1863 1161 Robot Analysis Total . | . . . . Derelict Logs Recovered 4 | . . 2 2 Drone Launches . | . . . . Drone Recoveries . | . . . . Exploration | -11 -10 -10 -10 ------------- Run | Yrd Mat Min Sub Turns Passed 4375 | 154 1197 1863 1161 Spaces Moved 3697 | 154 1167 1189 1187 Core 22 | 22 . . . Treads . | . . . . Legs . | . . . . Wheels 3675 | 132 1167 1189 1187 Hover . | . . . . Flight . | . . . . Fastest Speed 50 | 50 80 80 80 Average Speed 81 | 75 80 80 84 Slowest Speed 95 | 80 80 80 95 Overloaded Moves . | . . . . Propulsion Burnouts . | . . . . Robots Hopped . | . . . . Potential Cave-ins . | . . . . Cave-ins Triggered . | . . . . Exploration Rate (%) 66 | 5 90 99 73 Regions Visited 3 Branch Regions 2 Pre-discovered Areas 3 | . . 1 2 Known Exits Taken . | . . . . Unknown Exits Taken 3 | 1 1 1 . Scrap Searched 3 | . . 1 2 Spaces Dug 25 | . 8 . 17 Terrain Destroyed 351 | . 141 50 160 Melee . | . . . . Projectile . | . . . . AOE 351 | . 141 50 160 Terrain Rammed . | . . . . Walls Destroyed . | . . . . Machines Disabled . | . . . . Actions | -11 -10 -10 -10 --------- Run | Yrd Mat Min Sub Total 4915 | 176 1368 2080 1291 Wait 1051 | . 125 863 63 Move 3694 | 153 1166 1188 1187 Hop . | . . . . Pick Up 11 | 2 5 3 1 Fast Attach 20 | 9 9 1 1 Attach 4 | . 4 . . Detach 5 | 2 3 . . Swap 9 | . 5 3 1 Drop 16 | 1 9 5 1 Fire 103 | 9 42 15 37 Melee . | . . . . Ram 2 | . . 2 . Kick . | . . . . Crush . | . . . . Escape Stasis . | . . . . Rewire . | . . . . Trap . | . . . . Miscellaneous . | . . . . Route ------- -11/Scrapyard -10/Materials (discovered 3 exits: [*Mat x2] / *Min) -10/Mines (discovered 3 exits: [*Mat x2] / [*Sub]) -10/Subcaves History --------- Turn | Location | Event 7 | -11/Scrapyard | Discovered new exit (range 15) 155 | -11/Scrapyard | Entered Materials 323 | -10/Materials | Build established: Mutant 568 | -10/Materials | Discovered new exit (range 7) 585 | -10/Materials | Discovered new exit (range 16) 714 | -10/Materials | Repaired Grenade Launcher 981 | -10/Materials | Discovered new exit (range 10) 1352 | -10/Materials | Entered Mines 1413 | -10/Mines | Learned Materials security intel 1419 | -10/Mines | Discovered new exit (range 5) 1445 | -10/Mines | Learned location of Zion (-6) 1472 | -10/Mines | Assisted by bots powering up and referring to "LRC-V3" 2390 | -10/Mines | Discovered new exit (range 13) 2532 | -10/Mines | Met a Derelict who couldn't figure out how to use a Trap Extractor 2708 | -10/Mines | Discovered new exit (range 4) 3215 | -10/Mines | Entered Subcaves 3215 | -10/Subcaves | Accompanied by 2 allies 3223 | -10/Subcaves | Led the pair of lost Derelicts to an unsafe place 3461 | -10/Subcaves | Learned location of Recycling (-7) 3515 | -10/Subcaves | Met a Zionite searching for "candidates" 3596 | -10/Subcaves | Shifting Twisted Machinery released Riot Gun 3596 | -10/Subcaves | Shifting Twisted Machinery released Piercing Trap 3639 | -10/Subcaves | Core integrity fell below 50% 3660 | -10/Subcaves | Shifting Twisted Machinery released Sub. Machine Gun 3674 | -10/Subcaves | Shifting Twisted Machinery released Riot Gun 3706 | -10/Subcaves | A swath of the cavern ceiling suddenly collapsed 3738 | -10/Subcaves | Core integrity fell below 20% 4147 | -10/Subcaves | Ambushed by Subdweller buried in earth 4235 | -10/Subcaves | Learned 2 Materials zone layouts 4376 | -10/Subcaves | Destroyed by Autobeam Turret with Autobeam Last Messages --------------- 04047_ Acquired 10 matter. 04147_ RT-046(R) destroyed. 04148_ 21-W3Z(R): "GOODGOOD!" 04150_ BR-U3R(R) destroyed. 04153_ 21-W3Z(R) affixes Scrap Shield Fragment to Scrap Shield. 04153_ 21-W3Z(R) destroyed. 04154_ AA-KJ9(R): "GOODGOOD!" 04156_ ZM-73I(R) destroyed. 04160_ AA-KJ9(R) affixes Scrap Shield Fragment to Scrap Shield. 04161_ AA-KJ9(R) destroyed. 04169_ Acquired 9 matter. 04172_ Acquired 5 matter. 04186_ Acquired 6 matter. 04195_ The unstable cave ceiling collapses. 04235_ Acquired derelict log, extracted data. Data stored: Materials zone layouts (x2). 04287_ 81-NKG(u) tweaks Twisted Machinery. 04317_ The unstable cave ceiling collapses. Map ----- +----------------------------------------------------+ | ?????????????????????????????????????????????????? | | ?????????????????????????????????????????????????? | | ?????????????????????????????????????????????????? | | ?????????????????????????????????????????????????? | | ?????????????????????????????????????????????????? | | ?????????????????????????????????????????????????? | | ?????????????????????????????????????????????????? | | ?????????????????????????????????????????????????? | | ?????????????????????????????????????????????????? | | ?????????????????????????????????????????????????? | | ?????????????????????????????????????????????????? | | ?????????????????????????????????????????????????? | | ?????????????#???????????????????????????????????? | | ?????????????????????????????????????????????????? | | ?????? ?????????????????????????????????????????? | | ???????????#????????????????????????????????????? | | ?????????????????????????????????????????????????? | | ???????????????#?????????????????????????????????? | | ?????????????????????????????????????????????????? | | ? ??????##???????????#???????????????????????????? | | ???????# ???????????????????????????????????????? | | ??????? ??????????????????####????? ##?????????? | | ????? ? #?????????????????# ### ??????????? | | ?????### #?????#######???? #????????????? | | ? ????## #????## ##### ?????????????? | | ?????# #???## @ #????????????????????? | | ??????# ##### ## ## #????????????????????? | | #?? ?## ## ######### #???????????????????? | | #???## #???????# ?????????????????? | | ##### # # #??????? ??????????????? | | ## ### #########??????? ## ?????????????? | | " ##????????????? ##?? #????????????? | | "##?????????????? #???? #????????????? | | ""###????????????? #????? #???????????? | | # "" ##????? ????? ##?????? ???????????? | | ## ###"" ##??? ?????s ???????? ????????????? | | ?####?#"""##?? ???# ? ?????????????????????? | | ??????#" ""#?# """" ??? ?????????????????????? | | #??#??#" "## "" "????? t t ?????????????????????? | | #??#####" """"""""????? " " ????????????????????? | | ###?# " """ """ ???"? ?"?????????????????????? | | ### " "" #????????????????????????????? | | """"" ?????????????????????????????? | | """" ??????????????????????????????? | | ## # "" "" ???????????????????????????????? | | ?#### """"" ??????????????????????????????? | | ???########"""" #?????????????????????????????? | | ??????????##"" "" #?????????????????????????????? | | ????????????""##" #??????????????????????????????? | | ??????? ????? ???????????????????????????????????? | +----------------------------------------------------+ Best States ------------- Heat Dissipation 25 Energy Generation 10 Energy Capacity 250 Matter Stores 300 Matter Capacity 300 Sight Range 16 Terrain Scan Range 16 Terrain Scan Density 10 Evasion (%) 50 Item Schematics ----------------- None Robot Schematics ------------------ None Fabricated ------------ Nothing Repaired ---------- Grenade Launcher | 31% | -10/Materials Studied --------- None Alien Tech Used ----------------- None Achievements -------------- None Challenges ------------ None Game ------ Seed ParticleScrapoidStorage Manual? 0 Play Time 00:42:18 Cumulative 32.2 hours Start 2026.02.11 @ 22:49:31 End 2026.02.11 @ 23:32:41 Sessions 1 Manual Loads 0 Difficulty Rogue Special Mode None Game No. 35 Rogue 35 Adventurer 0 Explorer 0 Win Type - Total 0 Types 0/0/0/0/0/0/0/0/0/0 Lore% 16 Gallery% 15 Achievement% 14 Wizard Run 0 Options --------- Layout 1 ASCII 0 Keyboard 1 Movement Numpad Keybinds 0 Fullscreen 2 Font 24/Cog Map View 50x35 Zoom Use 0% Tactical HUD 1 Map Filters NONE Filters NONE Steam 1 RUN: 2cf1b468-477c-4be2-b573-062dd04c88bf